bitfinex/quotes_SOLUSD_20241210
["timestamp","ask_amount","ask_price","bid_price","bid_amount"]
[1733831828699,1.5998,216.73,216.65,14.09190717]
[1733831829279,1.5998,216.73,216.6,0.69227969]
[1733831829280,1.5998,216.73,216.67,14.09190717]
[1733831829474,1.5998,216.73,216.68,14.09190717]
[1733831830582,1.5998,216.78,216.72,14.09190717]
[1733831830775,1.5998,216.78,216.75,14.09190717]
[1733831831295,1.5998,216.78,216.74,14.09190717]
[1733831831685,1.5998,216.78,216.73,14.09190717]
[1733831831869,1.5998,216.78,216.71,14.09190717]
[1733831833222,1.5998,216.78,216.72,14.09190717]
[1733831834613,1.5998,216.78,216.73,14.09190717]
[1733831835379,1.5998,216.78,216.7,14.09190717]
[1733831836213,0.12549,216.77,216.7,14.09190717]
[1733831837895,0.25098,216.77,216.67,14.09190717]
[1733831838104,0.25098,216.77,216.68,14.09190717]
[1733831838982,0.25098,216.77,216.69,14.09190717]
[1733831839379,1.5998,216.78,216.7,14.09190717]
[1733831839575,1.5998,216.78,216.72,14.09190717]
[1733831840708,1.5998,216.78,216.7,14.09190717]
[1733831840916,0.25098,216.77,216.68,14.09190717]
[1733831841414,0.25098,216.77,216.67,14.09190717]
[1733831844386,0.12549,216.75,216.65,14.09190717]
[1733831844592,0.12549,216.72,216.64,14.09190717]
[1733831844790,0.25098,216.72,216.63,14.09190717]
[1733831844992,0.25098,216.7,216.62,14.09190717]
[1733831845203,0.25098,216.7,216.59,14.09190717]
[1733831845414,0.25098,216.7,216.58,14.09190717]
[1733831845620,20.25098,216.7,216.58,14.09190717]
[1733831845790,20.25098,216.7,216.59,14.09190717]
[1733831847212,0.25098,216.7,216.62,14.09190717]
[1733831847399,0.12549,216.7,216.62,14.09190717]
[1733831847598,0.12549,216.7,216.63,14.09190717]
[1733831848318,0.12549,216.7,216.56,0.69231003]
[1733831848319,0.12549,216.7,216.62,14.09190717]
[1733831850091,0.25098,216.7,216.62,14.09190717]
[1733831850300,0.25098,216.7,216.61,14.09190717]
[1733831851626,0.12549,216.7,216.63,14.09190717]
[1733831851998,1.5261,216.71,216.63,14.09190717]
[1733831853800,1.5261,216.71,216.52,6.1077]
[1733831853801,0.25098,216.7,216.53,0.69237393]
[1733831853993,0.25098,216.68,216.57,14.09190717]
[1733831854200,0.12549,216.65,216.57,14.09190717]
[1733831854412,0.25098,216.65,216.57,14.09190717]
[1733831855523,0.25098,216.65,216.58,14.09190717]
[1733831856102,0.25098,216.65,216.59,14.09190717]
[1733831857030,20.25098,216.65,216.59,14.09190717]
[1733831857399,20.25098,216.65,216.57,5.0]
[1733831857400,0.25098,216.65,216.57,19.09190717]
[1733831858409,0.25098,216.65,216.57,5.0]
[1733831859342,0.25098,216.65,216.57,19.09190717]
[1733831865755,0.25098,216.65,216.57,5.0]
[1733831866917,0.25098,216.63,216.57,5.0]
[1733831868535,0.25098,216.61,216.57,5.0]
[1733831869647,1.556,216.64,216.57,5.0]
[1733831869838,1.556,216.64,216.57,19.09190717]
[1733831871254,0.12549,216.63,216.57,19.09190717]
[1733831871549,1.556,216.64,216.57,19.09190717]
[1733831872850,0.12549,216.63,216.57,19.09190717]
[1733831874530,1.556,216.64,216.57,19.09190717]
[1733831876928,0.25098,216.63,216.57,5.0]
[1733831879132,0.12549,216.63,216.57,5.0]
[1733831879948,1.556,216.64,216.57,5.0]
[1733831880629,0.12549,216.63,216.57,5.0]
[1733831885557,0.25098,216.63,216.57,5.0]
[1733831887033,0.12549,216.63,216.57,5.0]
[1733831887266,0.25098,216.63,216.57,5.0]
[1733831889955,0.12549,216.63,216.57,5.0]
[1733831890163,7.6533,216.69,216.58,9.00956606]
[1733831890742,7.6533,216.69,216.59,9.00956606]
[1733831891342,20.0,216.66,216.59,9.00956606]
[1733831891550,1.5819,216.74,216.64,9.00956606]
[1733831891753,1.5819,216.74,216.63,9.00956606]
[1733831892064,1.5819,216.74,216.62,9.00956606]
[1733831892065,0.12549,216.73,216.62,9.00956606]
[1733831892947,0.12549,216.72,216.62,9.00956606]
[1733831893262,20.0,216.71,216.57,5.0]
[1733831893466,0.25098,216.68,216.57,14.00956606]
[1733831894672,20.25098,216.68,216.57,14.00956606]
[1733831895142,20.25098,216.68,216.57,19.07473861]
[1733831896973,20.25098,216.68,216.57,5.0]
[1733831897140,0.12549,216.67,216.57,5.0]
[1733831897346,20.25098,216.65,216.57,5.0]
[1733831898853,0.25098,216.63,216.57,5.0]
[1733831900043,20.25098,216.63,216.57,5.0]
[1733831900366,0.25098,216.6,216.57,5.0]
[1733831900573,0.25098,216.58,216.57,5.0]
[1733831901244,0.25098,216.58,216.57,2.5767]
[1733831901549,20.25098,216.55,216.42,14.07473861]
[1733831902152,20.25098,216.55,216.43,14.07473861]
[1733831904772,0.12549,216.55,216.45,14.07473861]
[1733831904940,0.12549,216.55,216.46,14.07473861]
[1733831905142,0.25098,216.55,216.46,14.07473861]
[1733831906057,0.25098,216.55,216.45,14.07473861]
[1733831906644,0.25098,216.55,216.4,0.69297294]
[1733831906645,0.25098,216.55,216.43,14.07473861]
[1733831907053,0.25098,216.55,216.42,14.07473861]
[1733831907248,0.25098,216.53,216.4,14.07473861]
[1733831907969,24.027864,216.53,216.43,14.07473861]
[1733831908167,20.0,216.5,216.43,14.07473861]
[1733831908347,23.776884,216.49,216.43,14.07473861]
[1733831909156,23.776884,216.49,216.42,14.07473861]
[1733831909462,0.12549,216.48,216.41,14.07473861]
[1733831911569,0.12549,216.48,216.42,14.07473861]
[1733831912293,0.12549,216.48,216.4,14.07473861]
[1733831913574,23.776884,216.45,216.4,14.07473861]
[1733831913779,0.12549,216.48,216.4,14.07473861]
[1733831913981,23.776884,216.45,216.4,14.07473861]
[1733831915282,23.776884,216.45,216.4,9.02195827]
[1733831916377,23.776884,216.45,216.39,9.02195827]
[1733831918655,23.776884,216.45,216.4,9.02195827]
[1733831920779,23.776884,216.45,216.38,9.02195827]
[1733831921573,23.776884,216.45,216.39,9.02195827]
[1733831922501,0.25098,216.44,216.36,9.02195827]
[1733831922799,0.25098,216.44,216.28,0.4433644]
[1733831922800,23.902374,216.41,216.29,11.5584]
[1733831922984,23.902374,216.41,216.34,9.02195827]
[1733831924105,23.902374,216.41,216.35,9.02195827]
[1733831924291,1.5735,216.45,216.4,9.02195827]
[1733831924590,1.5735,216.5,216.42,9.02195827]
[1733831925167,0.12549,216.49,216.42,9.02195827]
[1733831925570,1.5735,216.5,216.44,9.02195827]
[1733831926969,0.12549,216.52,216.44,9.02195827]
[1733831927172,24.027864,216.52,216.44,9.02195827]
[1733831927378,0.12549,216.52,216.44,9.02195827]
[1733831927613,0.12549,216.53,216.45,9.02195827]
[1733831927794,0.25098,216.53,216.44,9.02195827]
[1733831928681,20.0,216.51,216.4,312.0]
[1733831928866,20.0,216.51,216.44,9.02195827]
[1733831928867,23.776884,216.5,216.44,9.02195827]
[1733831929366,23.776884,216.5,216.45,9.02195827]
[1733831930290,23.776884,216.5,216.41,0.69285759]
[1733831930291,23.776884,216.5,216.44,9.02195827]
[1733831930668,20.0,216.51,216.45,9.02195827]
[1733831930866,20.0,216.53,216.45,9.02195827]
[1733831931482,20.0,216.53,216.46,9.02195827]
[1733831931874,1.5735,216.55,216.48,9.02195827]
[1733831932073,1.5735,216.55,216.49,9.02195827]
[1733831933281,1.5735,216.6,216.5,9.02195827]
[1733831933794,1.5735,216.6,216.51,9.02195827]
[1733831934202,1.5735,216.6,216.52,9.02195827]
[1733831934387,1.5735,216.6,216.53,9.02195827]
[1733831934788,0.12549,216.59,216.53,9.02195827]
[1733831935378,20.0,216.58,216.53,9.02195827]
[1733831935579,0.12549,216.59,216.47,0.69276882]
[1733831935580,1.5735,216.6,216.54,9.02195827]
[1733831936280,1.5735,216.65,216.57,9.02195827]
[1733831936704,1.5735,216.65,216.56,9.02195827]
[1733831936998,0.12549,216.64,216.49,0.69260887]
[1733831937184,1.5735,216.65,216.49,0.69260887]
[1733831937389,1.5735,216.65,216.56,9.02195827]
[1733831937683,0.25098,216.64,216.56,9.02195827]
[1733831937890,20.0,216.63,216.56,9.02195827]
[1733831940082,0.25098,216.62,216.51,0.69255708]
[1733831940291,0.25098,216.62,216.52,9.02195827]
[1733831941589,0.25098,216.62,216.49,9.02195827]
[1733831942397,20.25098,216.62,216.5,9.02195827]
[1733831943616,20.25098,216.62,216.53,9.02195827]
[1733831943793,0.12549,216.62,216.53,9.02195827]
[1733831944298,0.12549,216.62,216.54,9.02195827]
[1733831944686,0.25098,216.62,216.54,9.02195827]
[1733831945612,0.12549,216.64,216.56,9.02195827]
[1733831945787,0.25098,216.64,216.56,9.02195827]
[1733831945987,0.25098,216.64,216.55,9.02195827]
[1733831946616,0.25098,216.64,216.5,0.69257801]
[1733831946617,0.25098,216.64,216.54,9.02195827]
[1733831946816,0.12549,216.62,216.54,9.02195827]
[1733831947187,0.12549,216.62,216.5,9.02195827]
[1733831947188,0.25098,216.62,216.5,9.02195827]
[1733831949496,20.25098,216.62,216.5,9.02195827]
[1733831949698,20.25098,216.62,216.48,9.02195827]
[1733831950499,20.25098,216.62,216.5,9.02195827]
[1733831952020,0.12549,216.57,216.5,9.02195827]
[1733831952327,0.12549,216.57,216.49,9.02195827]
[1733831953323,0.12549,216.61,216.49,9.02195827]
[1733831953721,0.25098,216.61,216.49,9.02195827]
[1733831954234,20.0,216.62,216.46,9.02195827]
[1733831954235,0.25098,216.59,216.46,9.02195827]
[1733831954429,0.12549,216.54,216.45,9.02195827]
[1733831955004,0.12549,216.54,216.47,9.02195827]
[1733831956914,0.12549,216.54,216.46,9.02195827]
[1733831957116,0.25098,216.54,216.45,9.02195827]
[1733831959220,0.25098,216.54,216.46,9.02195827]
[1733831959427,0.25098,216.54,216.47,9.02195827]
[1733831959606,0.12549,216.54,216.47,9.02195827]
[1733831960422,0.12549,216.54,216.46,9.02195827]
[1733831960624,0.25098,216.54,216.45,9.02195827]
[1733831961126,0.25098,216.54,216.44,9.02195827]
[1733831962623,0.25098,216.54,216.43,9.02195827]
[1733831963434,0.25098,216.52,216.43,9.02195827]
[1733831965516,0.25098,216.52,216.44,9.02195827]
[1733831966333,0.25098,216.52,216.43,9.02195827]
[1733831968414,0.25098,216.52,216.41,9.02195827]
[1733831968752,0.25098,216.52,216.4,9.02195827]
[1733831969523,0.25098,216.47,216.37,9.02195827]
[1733831969832,0.25098,216.47,216.32,12.249758]
[1733831969833,0.12549,216.47,216.4,9.02195827]
[1733831970027,0.12549,216.47,216.39,9.02195827]
[1733831970227,20.0,216.48,216.43,9.02195827]
[1733831973426,1.6377,216.53,216.45,9.02195827]
[1733831973840,0.12549,216.52,216.45,9.02195827]
[1733831978826,0.12549,216.52,216.46,9.02195827]
[1733831979422,0.25098,216.52,216.42,0.6928679]
[1733831979652,0.25098,216.52,216.37,0.69286662]
[1733831979835,0.25098,216.5,216.31,8.57248061]
[1733831980156,0.12549,216.44,216.31,8.57254285]
[1733831980531,0.12549,216.44,216.33,9.02195827]
[1733831981143,0.12549,216.44,216.31,0.69314285]
[1733831981340,0.12549,216.44,216.29,0.69326007]
[1733831981534,1.6178,216.45,216.39,9.02195827]
[1733831983754,0.12549,216.45,216.39,9.02195827]
[1733831983951,0.12549,216.45,216.4,9.02195827]
[1733831985043,6.3174,216.49,216.42,9.02195827]
[1733831985243,1.5092,216.5,216.42,9.02195827]
[1733831985438,0.12549,216.49,216.42,9.02195827]
[1733831985761,1.5092,216.5,216.44,9.02195827]
[1733831986638,0.12549,216.49,216.44,9.02195827]
[1733831987433,0.12549,216.49,216.43,9.02195827]
[1733831988442,1.5092,216.5,216.46,9.02195827]
[1733831988649,6.0346,216.54,216.49,9.02195827]
[1733831988959,6.0346,216.54,216.47,9.02195827]
[1733831989544,0.12549,216.53,216.47,9.02195827]
[1733831990255,0.12549,216.54,216.47,9.02195827]
[1733831991252,0.12549,216.54,216.48,9.02195827]
[1733831991761,0.12549,216.54,216.47,9.02195827]
[1733831992736,0.12549,216.54,216.42,0.6928078]
[1733831992737,0.25098,216.54,216.42,0.6928078]
[1733831992961,0.25098,216.54,216.44,9.02195827]
[1733831993535,0.25098,216.54,216.45,9.02195827]
[1733831994058,0.25098,216.54,216.46,9.02195827]
[1733831994864,0.25098,216.54,216.42,0.6928078]
[1733831995070,1.5092,216.55,216.36,0.69295482]
[1733831995071,0.25098,216.49,216.36,0.69295482]
[1733831995245,0.25098,216.47,216.36,9.02195827]
[1733831995440,0.25098,216.47,216.35,9.02195827]
[1733831997178,0.25098,216.47,216.36,9.02195827]
[1733831997375,0.25098,216.47,216.37,9.02195827]
[1733831998150,0.25098,216.47,216.36,9.02195827]
[1733831999973,0.25098,216.47,216.32,0.69309578]
[1733831999974,0.25098,216.47,216.37,9.02195827]
[1733832000188,0.12549,216.47,216.38,9.02195827]
[1733832002705,0.12549,216.47,216.4,9.02195827]
[1733832002868,1.5092,216.48,216.42,9.02195827]
[1733832003270,1.5092,216.48,216.41,9.02195827]
[1733832003473,0.12549,216.47,216.41,9.02195827]
[1733832004079,0.12549,216.47,216.41,321.02195827]
[1733832004479,6.0346,216.53,216.45,9.02195827]
[1733832005286,1.553,216.54,216.46,9.02195827]
[1733832005775,0.12549,216.53,216.46,9.02195827]
[1733832005970,1.553,216.54,216.47,9.02195827]
[1733832006183,1.553,216.54,216.49,9.02195827]
[1733832006487,6.0735,216.58,216.5,9.02195827]
[1733832007384,0.12549,216.57,216.5,9.02195827]
[1733832007962,0.12549,216.57,216.5,321.02195827]
[1733832008162,0.12549,216.57,216.51,9.02195827]
[1733832008362,0.12549,216.58,216.51,9.02195827]
[1733832008583,0.12549,216.58,216.5,321.02195827]
[1733832009206,0.12549,216.58,216.5,312.0]
[1733832009884,0.12549,216.58,216.48,9.02195827]
[1733832010088,0.12549,216.58,216.47,9.02195827]
[1733832010089,0.25098,216.58,216.47,9.02195827]
[1733832010291,0.25098,216.58,216.46,9.02195827]
[1733832011814,0.25098,216.58,216.42,0.69276689]
[1733832011815,0.25098,216.58,216.48,9.02195827]
[1733832014985,1.553,216.59,216.5,9.02195827]
[1733832015217,1.553,216.59,216.52,9.02195827]
[1733832015403,1.553,216.59,216.54,9.02195827]
[1733832015704,1.553,216.59,216.52,9.02195827]
[1733832015705,0.12549,216.58,216.52,9.02195827]
[1733832016283,1.553,216.59,216.52,9.02195827]
[1733832016892,0.12549,216.58,216.52,9.02195827]
[1733832018695,0.12549,216.58,216.52,9.71458507]
[1733832019296,0.12549,216.59,216.52,9.02195827]
[1733832020399,0.25098,216.59,216.45,0.6926524]
[1733832020603,0.25098,216.59,216.47,9.02195827]
[1733832020812,0.12549,216.59,216.42,0.69274765]
[1733832020988,13.87,216.62,216.44,9.02195827]
[1733832020989,0.12549,216.61,216.44,9.02195827]
[1733832021310,20.0,216.59,216.44,9.02195827]
[1733832021487,0.25098,216.58,216.45,9.02195827]
[1733832021682,0.25098,216.58,216.39,6.76402617]
[1733832022008,0.25098,216.58,216.43,9.02195827]
[1733832022309,0.25098,216.53,216.41,9.02195827]
[1733832023189,0.25098,216.53,216.38,2.33668753]
[1733832023383,0.25098,216.53,216.44,9.02195827]
[1733832023809,8.1919,216.57,216.47,9.02195827]
[1733832024011,0.12549,216.56,216.38,13.89038753]
[1733832024212,0.12549,216.56,216.45,9.02195827]
[1733832025211,0.12549,216.53,216.45,9.02195827]
[1733832025618,0.12549,216.53,216.4,0.69282829]
[1733832025619,0.12549,216.53,216.46,9.02195827]
[1733832027309,0.25098,216.53,216.43,9.02195827]
[1733832027506,0.25098,216.53,216.42,9.02195827]
[1733832027922,0.25098,216.53,216.44,9.02195827]
[1733832028712,0.12549,216.53,216.45,9.02195827]
[1733832029608,0.12549,216.53,216.46,9.02195827]
[1733832029811,0.12549,216.53,216.47,9.02195827]
[1733832030395,8.1919,216.57,216.49,9.02195827]
[1733832030597,8.1919,216.57,216.5,9.02195827]
[1733832030999,7.8172,216.62,216.52,9.02195827]
[1733832031204,7.8172,216.62,216.5,9.02195827]
[1733832031504,7.8172,216.62,216.51,9.02195827]
[1733832031715,0.12549,216.61,216.51,9.02195827]
[1733832032022,0.12549,216.58,216.51,9.02195827]
[1733832032311,7.8172,216.62,216.52,9.02195827]
[1733832032493,0.25098,216.61,216.52,9.02195827]
[1733832032898,7.8172,216.62,216.52,9.02195827]
[1733832033107,7.8172,216.62,216.53,9.02195827]
[1733832033307,20.0,216.59,216.53,9.02195827]
[1733832033505,20.0,216.59,216.49,0.69263917]
[1733832033506,0.12549,216.58,216.52,9.02195827]
[1733832033820,0.12549,216.58,216.51,9.02195827]
[1733832034720,0.12549,216.58,216.52,9.02195827]
[1733832035496,7.8172,216.62,216.54,9.02195827]
[1733832035905,0.12549,216.61,216.54,9.02195827]
[1733832037130,0.12549,216.61,216.55,9.02195827]
[1733832037312,0.12549,216.61,216.51,0.69257178]
[1733832037507,0.12549,216.61,216.55,9.02195827]
[1733832038422,6.2138,216.69,216.59,9.02195827]
[1733832038637,6.2138,216.69,216.6,9.02195827]
[1733832038842,0.12549,216.68,216.6,9.02195827]
[1733832039125,6.2138,216.69,216.6,9.02195827]
[1733832039507,0.12549,216.68,216.6,9.02195827]
[1733832039710,0.12549,216.65,216.6,9.02195827]
[1733832040546,6.2138,216.69,216.61,9.02195827]
[1733832041538,1.6034,216.71,216.62,9.02195827]
[1733832041716,21.6034,216.71,216.65,9.02195827]
[1733832041919,21.6034,216.71,216.66,9.02195827]
[1733832042222,21.6034,216.71,216.63,9.02195827]
[1733832042525,0.12549,216.7,216.63,9.02195827]
[1733832043237,0.12549,216.7,216.62,9.02195827]
[1733832044716,0.12549,216.7,216.63,9.02195827]
[1733832045041,6.6651,216.74,216.66,9.02195827]
[1733832045207,0.12549,216.75,216.67,9.02195827]
[1733832045524,1.6565,216.76,216.68,9.02195827]
[1733832046039,0.12549,216.75,216.63,0.69230299]
[1733832046217,0.12549,216.75,216.66,9.02195827]
[1733832046407,0.12549,216.75,216.6,17.8766]
[1733832046408,0.12549,216.75,216.65,9.02195827]
[1733832046618,0.12549,216.75,216.66,9.02195827]
[1733832047124,0.25098,216.75,216.66,9.02195827]
[1733832049247,0.25098,216.75,216.61,0.69222513]
[1733832049248,0.12549,216.75,216.68,9.02195827]
[1733832050738,0.12549,216.75,216.66,9.02195827]
[1733832050941,0.25098,216.75,216.64,0.69211211]
[1733832051118,0.25098,216.75,216.63,9.02195827]
[1733832052716,20.25098,216.75,216.61,9.02195827]
[1733832053441,0.12549,216.73,216.57,0.69230523]
[1733832053744,0.25098,216.7,216.61,9.02195827]
[1733832053951,0.25098,216.68,216.57,0.69230523]
[1733832054123,0.25098,216.68,216.55,9.02195827]
[1733832054318,0.25098,216.68,216.54,9.02195827]
[1733832054525,0.12549,216.63,216.54,9.02195827]
[1733832056341,14.12549,216.64,216.54,9.02195827]
[1733832056853,14.12549,216.64,216.55,9.02195827]
[1733832059726,14.12549,216.64,216.52,0.69252656]
[1733832059727,6.1263,216.67,216.59,9.02195827]
[1733832060250,6.1263,216.67,216.58,9.02195827]
[1733832060776,0.12549,216.66,216.58,9.02195827]
[1733832061753,0.25098,216.68,216.59,9.02195827]
[1733832062831,0.25098,216.68,216.6,9.02195827]
[1733832063253,1.6565,216.69,216.63,9.02195827]
[1733832063658,0.12549,216.68,216.62,9.02195827]
[1733832064044,6.6138,216.72,216.63,9.02195827]
[1733832064334,6.6138,216.72,216.64,9.02195827]
[1733832064762,6.6138,216.72,216.59,36.78010026]
[1733832064763,20.0,216.69,216.63,9.02195827]
[1733832065349,0.12549,216.68,216.6,312.0]
[1733832065559,0.12549,216.68,216.63,9.02195827]
[1733832066961,20.0,216.69,216.63,9.02195827]
[1733832067136,20.0,216.69,216.64,9.02195827]
[1733832067455,20.0,216.69,216.63,9.02195827]
[1733832068343,0.12549,216.71,216.64,9.02195827]
[1733832068542,0.12549,216.71,216.65,9.02195827]
[1733832068941,21.5541,216.74,216.66,9.02195827]
[1733832069141,1.5541,216.74,216.68,9.02195827]
[1733832070442,1.5541,216.79,216.73,9.02195827]
[1733832070838,1.5541,216.79,216.63,0.6920006]
[1733832070839,1.5541,216.79,216.72,9.02195827]
[1733832071465,1.5541,216.79,216.71,9.02195827]
[1733832071649,1.5541,216.79,216.69,0.69201304]
[1733832071650,1.5541,216.79,216.72,9.02195827]
[1733832072654,0.12549,216.78,216.72,9.02195827]
[1733832073559,0.12549,216.78,216.7,9.02195827]
[1733832074165,0.25098,216.78,216.68,9.02195827]
[1733832076790,0.25098,216.78,216.64,9.02195827]
[1733832077162,0.12549,216.76,216.64,9.02195827]
[1733832077363,0.25098,216.76,216.64,9.02195827]
[1733832079670,0.25098,216.69,216.56,0.69229667]
[1733832079869,0.25098,216.69,216.59,9.02195827]
[1733832080583,0.25098,216.69,216.58,9.02195827]
[1733832081664,0.25098,216.69,216.59,9.02195827]
[1733832081980,0.12549,216.69,216.62,9.02195827]
[1733832082185,0.12549,216.69,216.56,0.69243598]
[1733832082186,1.6558,216.7,216.64,9.02195827]
[1733832082701,0.12549,216.69,216.56,20.6923034]
[1733832083002,0.12549,216.69,216.6,9.02195827]
[1733832083369,0.25098,216.69,216.6,9.02195827]
[1733832085111,0.25098,216.69,216.61,9.02195827]
[1733832085688,0.25098,216.69,216.6,9.02195827]
[1733832086088,0.25098,216.69,216.56,312.0]
[1733832086291,0.25098,216.69,216.57,9.02195827]
[1733832086492,0.25098,216.64,216.55,9.02195827]
[1733832087531,0.12549,216.64,216.57,9.02195827]
[1733832087866,20.0,216.65,216.6,9.02195827]
[1733832088109,6.6467,216.68,216.61,9.02195827]
[1733832088287,1.6558,216.7,216.62,9.02195827]
[1733832088488,1.6558,216.7,216.64,9.02195827]
[1733832088889,7.5182,216.75,216.66,9.02195827]
[1733832089491,0.12549,216.74,216.65,9.02195827]
[1733832089727,7.5182,216.75,216.66,9.02195827]
[1733832090090,7.5182,216.75,216.65,9.02195827]
[1733832090421,1.5125,216.75,216.68,9.02195827]
[1733832090627,1.5125,216.8,216.69,9.02195827]
[1733832091300,1.5125,216.8,216.7,9.02195827]
[1733832091700,20.0,216.78,216.62,0.69207186]
[1733832091899,0.12549,216.77,216.69,9.02195827]
[1733832092691,0.12549,216.77,216.7,9.02195827]
[1733832094097,0.12549,216.77,216.69,9.02195827]
[1733832094303,20.0,216.78,216.71,9.02195827]
[1733832094613,1.5125,216.8,216.72,9.02195827]
[1733832095520,1.5125,216.8,216.73,9.02195827]
[1733832095722,20.0,216.78,216.73,9.02195827]
[1733832096540,20.0,216.78,216.72,9.02195827]
[1733832098128,20.0,216.78,216.68,0.69194614]
[1733832098304,20.0,216.78,216.69,9.02195827]
[1733832098628,20.0,216.78,216.68,0.69194614]
[1733832098629,20.0,216.78,216.7,9.02195827]
[1733832099824,0.12549,216.77,216.7,9.02195827]
[1733832101028,0.12549,216.77,216.69,9.02195827]
[1733832101205,0.12549,216.77,216.66,0.6920742]
[1733832101543,0.12549,216.77,216.66,9.02195827]
[1733832102133,0.25098,216.77,216.65,9.02195827]
[1733832102303,0.25098,216.77,216.64,9.02195827]
[1733832102708,0.25098,216.77,216.63,9.02195827]
[1733832102933,20.25098,216.77,216.63,9.02195827]
[1733832103553,20.25098,216.77,216.64,9.02195827]
[1733832104330,0.12549,216.77,216.64,9.02195827]
[1733832104548,0.25098,216.77,216.64,9.02195827]
[1733832104715,0.25098,216.77,216.65,9.02195827]
[1733832106644,0.25098,216.77,216.64,9.02195827]
[1733832107036,0.12549,216.73,216.64,9.02195827]
[1733832108045,0.12549,216.77,216.61,0.69223289]
[1733832108046,0.25098,216.77,216.61,0.69223289]
[1733832108218,0.25098,216.77,216.64,9.02195827]
[1733832108631,0.25098,216.77,216.63,9.02195827]
[1733832108821,0.25098,216.77,216.62,9.02195827]
[1733832109020,0.25098,216.77,216.63,9.02195827]
[1733832109220,0.25098,216.77,216.64,9.02195827]
[1733832110044,0.25098,216.77,216.63,9.02195827]
[1733832110464,20.25098,216.77,216.63,9.02195827]
[1733832112450,0.25098,216.77,216.63,9.02195827]
[1733832112659,0.25098,216.77,216.64,9.02195827]
[1733832113252,0.25098,216.77,216.65,9.02195827]
[1733832115264,20.0,216.78,216.65,9.02195827]
[1733832115443,20.0,216.78,216.67,9.02195827]
[1733832115638,0.12549,216.77,216.67,9.02195827]
[1733832115840,20.12549,216.77,216.67,9.02195827]
[1733832116451,0.12549,216.77,216.65,9.02195827]
[1733832116662,0.12549,216.77,216.64,9.02195827]
[1733832117251,0.12549,216.77,216.6,0.69224398]
[1733832117443,0.12549,216.77,216.63,9.02195827]
[1733832118449,24.027864,216.73,216.63,9.02195827]
[1733832118662,0.12549,216.69,216.63,9.02195827]
[1733832118964,20.0,216.7,216.63,9.02195827]
[1733832119159,20.0,216.7,216.65,9.02195827]
[1733832119359,23.776884,216.73,216.65,9.02195827]
[1733832119962,0.12549,216.72,216.65,9.02195827]
[1733832121162,0.12549,216.72,216.6,0.69220615]
[1733832121163,20.0,216.78,216.66,9.02195827]
[1733832121690,6.0057,216.81,216.67,0.69212384]
[1733832121869,6.0057,216.81,216.68,9.02195827]
[1733832122087,6.0057,216.81,216.7,9.02195827]
[1733832122366,6.0057,216.81,216.71,9.02195827]
[1733832123661,0.12549,216.8,216.7,9.02195827]
[1733832123851,0.12549,216.8,216.71,9.02195827]
[1733832124562,20.0,216.78,216.71,9.02195827]
[1733832130683,20.0,216.78,216.71,9.71393882]
[1733832131384,20.0,216.78,216.72,9.02195827]
[1733832132282,20.0,216.78,216.71,9.02195827]
[1733832132485,0.12549,216.77,216.67,9.02195827]
[1733832134184,0.12549,216.77,216.68,9.02195827]
[1733832134396,20.0,216.82,216.72,9.02195827]
[1733832134584,20.0,216.84,216.73,9.02195827]
[1733832134783,0.12549,216.83,216.73,9.02195827]
[1733832134984,20.0,216.84,216.74,9.02195827]
[1733832135488,0.12549,216.83,216.74,9.02195827]
[1733832135890,1.5043,216.85,216.77,9.02195827]
[1733832136093,1.5043,216.85,216.79,9.02195827]
[1733832137220,1.6642,216.91,216.79,9.02195827]
[1733832137422,0.12549,216.9,216.8,9.02195827]
[1733832137989,0.12549,216.88,216.8,9.02195827]
[1733832138599,0.12549,216.88,216.81,9.02195827]
[1733832139084,20.0,216.89,216.81,9.02195827]
[1733832139285,20.0,216.89,216.83,9.02195827]
[1733832139512,0.12549,216.9,216.83,9.02195827]
[1733832140107,0.12549,216.9,216.82,9.02195827]
[1733832141001,20.0,216.89,216.82,9.02195827]
[1733832141315,1.6642,216.91,216.85,9.02195827]
[1733832141901,0.5569663,216.92,216.85,9.02195827]
[1733832144323,0.5569663,216.92,216.86,9.02195827]